Cogmind - Beta 13 @@@ ROGUE MODE // 2024.04.05 @ 12:50:43 Player: writers.room Result: Destroyed by G-47 Trooper with Particle Gun Performance ------------- Evolutions (2) 1000 Regions Visited (4) 800 Robots Destroyed (23) 115 Value Destroyed (745) 745 Prototype IDs (3) 60 Alien Tech Used (0) 0 Bonus (470) 470 TOTAL SCORE: 3190 Bonus ------- Pacifist 470 Cogmind --------- Core Integrity 0/550 Matter 450/450 Energy 420/420 System Corruption 2% Temperature Warm (194) Movement Treading (240) Ox1 Location -8/Materials Parts ------- > --- POWER (2) -------- Heavy Ion Engine Nuclear Core > --- PROPULSION (5) --- Light Treads > --- UTILITY (2) ------ Compact Matter Pod > --- WEAPON (2) ------- Improved EM Shotgun Improved EM Shotgun > --- INVENTORY (5) ---- Heavy EM Shotgun Heavy EM Shotgun Heavy EM Shotgun Peak State ------------ > --- POWER ------------ Heavy Ion Engine Nuclear Core > --- PROPULSION ------- Light Treads Aluminum Leg > --- UTILITY ---------- Compact Matter Pod Compact Matter Pod > --- WEAPON ----------- Improved EM Shotgun Improved EM Shotgun > --- INVENTORY -------- Heavy EM Shotgun Heavy EM Shotgun Heavy EM Shotgun [Rating: 21] Favorites ----------- Power Nuclear Core Engine Heavy Ion Engine Power Core Nuclear Core Propulsion Light Treads Treads Light Treads Leg Aluminum Leg Wheel Armored Wheel Hover Unit Backup Propulsion I Utility Backup Plating I Storage Compact Matter Pod Protection Backup Plating I Weapon Backup Laser I Energy Gun Backup Laser I Ballistic Cannon Light Cannon Build | -11 -10 -9 -9 -8 ------- Run | Yrd Mat Mat Min Mat Slots Evolved 4 | . . 2 . 2 Power 1 | . . . . 1 Propulsion 3 | . . 2 . 1 Utility . | . . . . . Weapon . | . . . . . Parts Attached 27 | . 2 . . 25 Power 7 | . . . . 7 Engine 2 | . . . . 2 Core 5 | . . . . 5 Reactor . | . . . . . Propulsion 6 | . . . . 6 Treads 3 | . . . . 3 Leg 2 | . . . . 2 Wheel 1 | . . . . 1 Hover . | . . . . . Flight . | . . . . . Utility 4 | . 1 . . 3 Device . | . . . . . Storage 3 | . 1 . . 2 Processor . | . . . . . Hackware . | . . . . . Protection 1 | . . . . 1 Artifact . | . . . . . Weapon 10 | . 1 . . 9 Energy Gun 8 | . 1 . . 7 Energy Cannon . | . . . . . Ballistic Gun . | . . . . . Ballistic Cannon 2 | . . . . 2 Launcher . | . . . . . Special Weapon . | . . . . . Impact Weapon . | . . . . . Slashing Weapon . | . . . . . Piercing Weapon . | . . . . . Special Melee Weapon . | . . . . . Unidentified Prototypes 3 | . . . . 3 Parts Lost 15 | . . . . 15 Power 2 | . . . . 2 Propulsion 6 | . . . . 6 Utility 6 | . . . . 6 Weapon 1 | . . . . 1 Highest Loss Streak 5 | . . . . 5 To Critical Strikes . | . . . . . Average Slot Usage (%) 41 | . 17 . . 53 Engine 2 | . . . . 3 Core 9 | . . . . 12 Treads 4 | . . . . 6 Leg 2 | . . . . 3 Wheel 1 | . . . . 1 Hover 1 | . . . . 1 Storage 3 | . 8 . . 2 Protection 5 | . . . . 7 Energy Gun 8 | . 8 . . 10 Ballistic Cannon 1 | . . . . 2 Naked Turns 220 | . 110 68 35 7 Heaviest Build 42 | . 42 . . 23 Greatest Support 40 | 3 3 3 3 40 Greatest Overweight (x) 13 | . 13 . . 6 Average Overweight (x) . | . 1 . . . Largest Inventory Capacity 20 | 5 20 5 5 5 Average Capacity 6 | 5 13 5 5 5 Most Carried 5 | . 1 . . 5 Average Carried . | . . . . . Final Capacity 5 | 5 5 5 5 5 Final Carried 3 | . . . . 3 Class Distribution -------------------- 100% | Mutant Dominant Class ---------------- Mutant | -10/Materials Mutant | -9/Materials Mutant | -9/Mines Mutant | -8/Materials Resources | -11 -10 -9 -9 -8 ----------- Run | Yrd Mat Mat Min Mat Matter Collected 657 | . . . . 657 Remotely . | . . . . . Salvage Created 1027 | . . . . 1027 Parts 60 | . . . . 60 Haulers Intercepted 3 | . . . . 3 Recyclers Shooed . | . . . . . Parts Field Recycled . | . . . . . Retrieved Matter . | . . . . . Parts Self-Destructed . | . . . . . Prevented . | . . . . . Kills | -11 -10 -9 -9 -8 ------- Run | Yrd Mat Mat Min Mat Combat Hostiles Destroyed 15 | . . . . 15 Melee 2 | . . . . 2 Guns 8 | . . . . 8 Cannons 2 | . . . . 2 AOE 2 | . . . . 2 Classes Destroyed 8 | . . . . 8 Worker 1 | . . . . 1 Builder 3 | . . . . 3 Hauler 3 | . . . . 3 Recycler 1 | . . . . 1 Grunt 9 | . . . . 9 Brawler 1 | . . . . 1 Sentry 4 | . . . . 4 Hunter 1 | . . . . 1 Best Kill Streak 4 | . . . . 4 Combat Bots Only 3 | . . . . 3 Max Kills in Single Turn 2 | . . . . 2 Gunslinging . | . . . . . Exploded 2 | . . . . 2 Melee 1 | . . . . 1 Uniques/NPCs Destroyed . | . . . . . Combat | -11 -10 -9 -9 -8 -------- Run | Yrd Mat Mat Min Mat Hostile Shots Fired 221 | . 18 39 . 164 Missed 60 | . 2 17 . 41 Damage Taken 2445 | . 234 174 . 2037 Core 954 | . 213 174 . 567 Absorbed by Shields . | . . . . . Core Remaining (%) 56 | 100 14 . 56 . Volleys Fired 63 | . 1 . . 62 Largest 2 | . 1 . . 2 Hottest 115 | . 40 . . 115 Shots Fired 122 | . 1 . . 121 Gun 92 | . 1 . . 91 Cannon 30 | . . . . 30 Launcher . | . . . . . Special . | . . . . . Kinetic 30 | . . . . 30 Thermal 41 | . . . . 41 Explosive . | . . . . . Electromagnetic 51 | . 1 . . 50 Robot Hit Streak 18 | . . . . 18 Robot Miss Streak 4 | . 1 . . 4 Penetration Max . | . . . . . Secondary Targets 2 | . . . . 2 Max Gunslinging Chain 1 | . . . . 1 Shots Hit Robots 92 | . . . . 92 Core Hits 45 | . . . . 45 Critical Kills . | . . . . . Critical Parts Destroyed . | . . . . . Critical Strikes 1 | . . . . 1 Blast 1 | . . . . 1 Melee Attacks . | . . . . . Impact . | . . . . . Slashing . | . . . . . Piercing . | . . . . . Sneak Attacks . | . . . . . Combat Hostiles . | . . . . . Follow-up Attacks . | . . . . . Damage Inflicted 1829 | . 64 . . 1765 Guns 1163 | . . . . 1163 Cannons 359 | . . . . 359 Explosions 139 | . . . . 139 Melee . | . . . . . Ramming 168 | . 64 . . 104 Kinetic 359 | . . . . 359 Thermal 393 | . . . . 393 Explosive . | . . . . . Electromagnetic 909 | . . . . 909 Impact . | . . . . . Slashing . | . . . . . Piercing . | . . . . . Highest Corruption 2 | . 1 . . 2 Average Corruption 1 | . 1 . . 2 Corruption Purged . | . . . . . Corruption Blocked . | . . . . . Effects 12 | . . . . 12 Message Errors 3 | . . . . 3 Matter Fused 4 | . . . . 4 Heat Flow Errors 2 | . . . . 2 Energy Discharges 3 | . . . . 3 Overload Shots . | . . . . . Overflow Damage . | . . . . . Projectiles . | . . . . . Explosions . | . . . . . Melee . | . . . . . Knockbacks 2 | . . . . 2 Impact . | . . . . . Kinetic 2 | . . . . 2 Secondary . | . . . . . Self-Inflicted Damage 125 | . 46 . . 79 Shots 1 | . . . . 1 Rammed 41 | . 5 . . 36 Targets Rammed 45 | . 5 . . 40 Kicked 2 | . . . . 2 Crushed 2 | . . . . 2 Highest Temperature 702 | . 2 . . 702 Average Temperature 169 | . 1 . . 170 Received Heat Transfer 1083 | . 99 21 . 963 Effects 19 | . . . . 19 Shutdowns 4 | . . . . 4 Energy Bleed 1 | . . . . 1 Interference 2 | . . . . 2 Matter Decay 2 | . . . . 2 Short Circuit 3 | . . . . 3 Damage (minor) 2 | . . . . 2 Damage (major) 4 | . . . . 4 Damage (core) 1 | . . . . 1 Siege Activations . | . . . . . Robots Corrupted 1 | . . . . 1 Combat Hostiles 1 | . . . . 1 Parts Fried 2 | . . . . 2 Impact Corruptions . | . . . . . Robots Melted . | . . . . . Combat Hostiles . | . . . . . Parts Melted 8 | . . . . 8 Heat Transferred 1249 | . . . . 1249 Parts Sabotaged . | . . . . . Parts Stolen . | . . . . . Parts Stripped . | . . . . . Power Chain Reactions 3 | . . . . 3 Alert | -11 -10 -9 -9 -8 ------- Run | Yrd Mat Mat Min Mat Peak Influence 240 | . 60 70 27 240 Initial 27 | . . 25 27 10 Average 73 | . 16 45 27 93 Maximum Alert Level 1 | . . . . 1 Low Security (%) 91 | 100 100 100 100 88 Level 1 8 | . . . . 11 Level 2 . | . . . . . Level 3 . | . . . . . Level 4 . | . . . . . Level 5 . | . . . . . High Security . | . . . . . Max Security . | . . . . . Squads Dispatched 3 | . 1 1 . 1 Investigation 2 | . . 1 . 1 Extermination . | . . . . . Reinforcement 1 | . 1 . . . Assault . | . . . . . Garrison . | . . . . . Intercept . | . . . . . Searches Triggered . | . . . . . Construction Impeded . | . . . . . Haulers Reinforced . | . . . . . Active Scanning Responses . | . . . . . Cargo Convoy Interrupts . | . . . . . Stealth | -11 -10 -9 -9 -8 --------- Run | Yrd Mat Mat Min Mat Distress Signals 2 | . . 1 . 1 Communications Jammed . | . . . . . Distress Signals . | . . . . . Times Spotted 37 | . 5 8 . 24 Peak Tracking Total 8 | . 4 8 . 5 Tactical Retreats 4 | . 1 1 . 2 Traps | -11 -10 -9 -9 -8 ------- Run | Yrd Mat Mat Min Mat Traps Triggered 1 | . . 1 . . Indirectly . | . . . . . Trap Hack Attempts . | . . . . . Triggered . | . . . . . Disarmed . | . . . . . Reprogrammed . | . . . . . Reused . | . . . . . Traps Extracted . | . . . . . Installed . | . . . . . Triggered . | . . . . . Machines | -11 -10 -9 -9 -8 ---------- Run | Yrd Mat Mat Min Mat Machines Disabled 2 | . 1 . . 1 Max in Single Turn 1 | . 1 . . 1 Machines Repaired . | . . . . . Machines Dismantled . | . . . . . Machines Sabotaged . | . . . . . Overloaded Fab Kills . | . . . . . Hacking | -11 -10 -9 -9 -8 --------- Run | Yrd Mat Mat Min Mat Machines Accessed 3 | . . . . 3 Terminals 1 | . . . . 1 Fabricators . | . . . . . Repair Stations 2 | . . . . 2 Recycling Units . | . . . . . Scanalyzers . | . . . . . Garrison Access . | . . . . . Total Hacks 7 | . . . . 7 Successful 4 | . . . . 4 Failed 3 | . . . . 3 Catastrophic 1 | . . . . 1 Database Lockouts . | . . . . . Manual . | . . . . . Terminals 2 | . . . . 2 Fabricators . | . . . . . Repair Stations 5 | . . . . 5 Recycling Units . | . . . . . Scanalyzers . | . . . . . Garrison Access . | . . . . . Terminal Hacks . | . . . . . Fabricator Hacks . | . . . . . Repair Station Hacks 4 | . . . . 4 Scan Component 1 | . . . . 1 Repair 1 | . . . . 1 Refit 2 | . . . . 2 Recycling Unit Hacks . | . . . . . Scanalyzer . | . . . . . Garrison Access Hacks . | . . . . . Unauthorized Hacks . | . . . . . Terminals . | . . . . . Fabricators . | . . . . . Repair Stations . | . . . . . Recycling Units . | . . . . . Scanalyzers . | . . . . . Garrison Access . | . . . . . Data Cores Recovered . | . . . . . Used . | . . . . . Hacking Detections 1 | . . . . 1 Full Trace Events 1 | . . . . 1 Feedback Events . | . . . . . Feedback Blocked . | . . . . . Robot Schematics Acquired . | . . . . . Robots Built . | . . . . . Authchips . | . . . . . Time . | . . . . . Total Robot Build Rating . | . . . . . Part Schematics Acquired . | . . . . . Parts Built . | . . . . . Authchips . | . . . . . Time . | . . . . . Total Part Build Rating . | . . . . . Parts Repaired . | . . . . . Time 26 | . . . . 26 Parts Recycled . | . . . . . Recycled Matter . | . . . . . Retrieved Matter . | . . . . . Retrieved Components . | . . . . . Parts Scanalyzed . | . . . . . Part Schematics Acquired . | . . . . . Parts Damaged . | . . . . . Bothacking | -11 -10 -9 -9 -8 ------------ Run | Yrd Mat Mat Min Mat Used RIF Installer . | . . . . . Robots Hacked . | . . . . . Non-combat . | . . . . . Combat . | . . . . . Robot Hacks Applied . | . . . . . Relay Couplers Released . | . . . . . Fabnet Peak Effective % . | . . . . . Robots Rewired . | . . . . . Allies Hacked . | . . . . . Hacks Repelled . | . . . . . Allies | -11 -10 -9 -9 -8 -------- Run | Yrd Mat Mat Min Mat Total Allies . | . . . . . Largest Group . | . . . . . Highest-Rated Group . | . . . . . Highest-Rated Ally . | . . . . . Total Orders . | . . . . . Ally Attacks . | . . . . . Total Damage . | . . . . . Kills . | . . . . . Allies Corrupted . | . . . . . Allies Melted . | . . . . . Intel | -11 -10 -9 -9 -8 ------- Run | Yrd Mat Mat Min Mat Robot Analysis Total . | . . . . . Derelict Logs Recovered 1 | . . . 1 . Drone Launches . | . . . . . Drone Recoveries . | . . . . . Exploration | -11 -10 -9 -9 -8 ------------- Run | Yrd Mat Mat Min Mat Turns Passed 1362 | 9 279 68 35 971 Spaces Moved 833 | 19 231 136 70 377 Core 487 | 19 231 136 70 31 Treads 233 | . . . . 233 Legs 58 | . . . . 58 Wheels 55 | . . . . 55 Hover . | . . . . . Flight . | . . . . . Fastest Speed 50 | 50 50 50 50 50 Average Speed 121 | 50 114 50 50 169 Slowest Speed 700 | 50 700 50 50 350 Overloaded Moves . | . . . . . Propulsion Burnouts . | . . . . . Robots Hopped . | . . . . . Cave-ins Triggered . | . . . . . Exploration Rate (%) 23 | 4 42 24 25 24 Regions Visited 4 Branch Regions 1 Pre-discovered Areas 1 | . . . 1 . Known Exits Taken . | . . . . . Unknown Exits Taken 4 | 1 1 1 1 . Scrap Searched . | . . . . . Spaces Dug . | . . . . . Terrain Destroyed 11 | . . . . 11 Melee . | . . . . . Projectile 1 | . . . . 1 AOE 10 | . . . . 10 Terrain Rammed 5 | . 2 . . 3 Walls Destroyed . | . . . . . Machines Disabled 1 | . 1 . . . Actions | -11 -10 -9 -9 -8 --------- Run | Yrd Mat Mat Min Mat Total 1027 | 18 242 135 69 563 Wait 28 | . . . . 28 Move 829 | 18 230 135 69 377 Hop . | . . . . . Pick Up 7 | . 1 . . 6 Fast Attach 22 | . 2 . . 20 Attach . | . . . . . Detach 7 | . . . . 7 Swap 5 | . . . . 5 Drop 16 | . 1 . . 15 Fire 63 | . 1 . . 62 Melee . | . . . . . Ram 12 | . 7 . . 5 Kick 2 | . . . . 2 Crush 36 | . . . . 36 Escape Stasis . | . . . . . Rewire . | . . . . . Trap . | . . . . . Miscellaneous . | . . . . . Route ------- -11/Scrapyard -10/Materials -9/Materials -9/Mines -8/Materials History --------- Turn | Location | Event 2 | -11/Scrapyard | Met Revision 17 5 | -11/Scrapyard | Discovered new exit (range 12) 10 | -11/Scrapyard | Entered Materials 225 | -10/Materials | Released all parts (2) 236 | -10/Materials | Core integrity fell below 50% 277 | -10/Materials | Discovered new exit (range 15) 278 | -10/Materials | Core integrity fell below 20% 289 | -10/Materials | Entered another Materials area 289 | -9/Materials | Evolved 2 slots: Propulsion x2 310 | -9/Materials | Build established: Mutant 347 | -9/Materials | Discovered new exit (range 16) 357 | -9/Materials | Entered Mines 382 | -9/Mines | Discovered new exit (range 16) 388 | -9/Mines | Learned location of Storage (-9) 392 | -9/Mines | Entered Materials 392 | -8/Materials | Evolved 2 slots: Power x1, Propulsion x1 644 | -8/Materials | Lost 5 parts (3n2u) 893 | -8/Materials | Core integrity fell below 50% 1078 | -8/Materials | Core integrity fell below 20% 1121 | -8/Materials | Lost 4 parts (1p1n2u) 1363 | -8/Materials | Destroyed by G-47 Trooper with Particle Gun Last Messages --------------- 01299_ Chain reaction triggered in Imp. Ion Engine. 01299_ U-05 Engineer destroyed. 01301_ K-01 Serf collects debris. 01302_ Heat Sink fried. 01302_ Y-45 Defender destroyed. 01302_ K-01 Serf destroyed. 01306_ U-05 Engineer lays Concrete. 01312_ Slug penetrates G-50 Soldier. 01312_ Acquired 13 matter. 01314_ U-05 Engineer lays Concrete. 01338_ Aluminum Leg destroyed. 01339_ G-50 Soldier system terminally corrupted. 01346_ GK GQ//6,CJJSO8,RDFMG:B QECD&P5 01349_ Critical hit (Burn: +37). 01350_ Imp. Heat Sink fried. 01350_ G-47 Trooper destroyed. 01354_ Overheating: Energy bleed (-84). 01358_ Slug penetrates Wall. 01358_ Com. Matter Pod destroyed. 01361_ Slug penetrates Wall. Map ----- +----------------------------------------------------+ | ??????????????# * #?????????????????????????????? | | ??????????????# #?????????????????????????????? | | ??????????????# #?????????????????????????????? | | ??????????????# *[!####### #?????????????????????? | | ??????????????# % + #?????????????????????? | | ??????????????# !* ########??????????????????????? | | ??????????????#[[= #?????????????????????????????? | | ?????############+########???????????????????????? | | ==%=%%!* +????????????????? | | ?????############ ########???????????????????????? | | ???????????????##%##?????????????????????????????? | | ????????????????# #??????????????????????????????? | | ????????????????# #??????????????????????????????? | | ???????????????## ##?????????????????????????????? | | ???????????????# #?????????????????????????????? | | ???????????????+ #?????????????????????????????? | | ???????????????# * #?????????????????????????????? | | ???????????????##[##?#########???????????????????? | | ????????????????#=#??# #???????????????????? | | ????????????????#%#??# #???????????????????? | | ????????????????#%#??# +???????????????????? | | ?????????????####!#??# #???????????????????? | | ????????????##!!! ####[ #???????????????????? | | ????????????#!!!!*[=##! #???????????????????? | | ????????????#!* ![!%+=% #???????????????????? | | ????????????#! !![*##= @ #???????????????????? | | ????????????#! *== ##* #???????????????????? | | ????????????##! *[!!## #???????????????????? | | ?????????????##"%!= ## #???????????????????? | | ??????????????# [=%=#######g##???????????????????? | | ??????????????### ????? ???????????????????? | | ????????????????# ??? ??????????????????? | | ????????????????# ?? ?????????????????? | | ????????????????# #######?### ????????????????? | | ????????????????# #?????????? ???????????????? | | ????????????????# #??????????? #??????????????? | | ????????????????+ #???????????? #??????????????? | | ????????????????# #?????????????#??????????????? | | ????????????????# #????????????????????????????? | | ????????????????# #????????????????????????????? | | ???????????????? ????????????????????????????? | | ????????????????? ????????????????????????????? | | ????????????????? ????????????????????????????? | | ????????????????? ]?????????????????????????????? | | ?????????????????????????????????????????????????? | | ?????????????????????????????????????????????????? | | ?????????????????????????????????????????????????? | | ?????????????????????????????????????????????????? | | ?????????????????????????????????????????????????? | | ?????????????????????????????????????????????????? | +----------------------------------------------------+ Best States ------------- Heat Dissipation 31 Energy Generation 23 Energy Capacity 420 Matter Stores 456 Matter Capacity 600 Sight Range 16 Terrain Scan Density 10 Armor Coverage 230 Evasion (%) 50 Recoil Reduction 2 Item Schematics ----------------- None Robot Schematics ------------------ None Fabricated ------------ Nothing Alien Tech Used ----------------- None Achievements -------------- None Challenges ------------ None Game ------ Seed TrackerArmageddonStabilizer Manual? 0 Play Time 00:10:49 Cumulative 34.2 hours Start 2024.04.05 @ 12:40:08 End 2024.04.05 @ 12:50:43 Sessions 1 Manual Loads 0 Difficulty Rogue Special Mode None Game No. 98 Rogue 58 Adventurer 14 Explorer 26 Win Type - Total 0 Types 0/0/0/0/0/0/0/0/0 Lore% 23 Gallery% 31 Achievement% 27 Wizard Run 0 Options --------- Layout 0 ASCII 0 Keyboard 1 Movement Vi Keybinds 0 Fullscreen 1 Font 18/SmallcapsGlow Map View 76x50 Zoom Use 0% Tactical HUD 1 Map Filters NONE Filters NONE Steam 1 RUN: 9a18d9e3-b4e5-47d2-9fff-bf54b5c2525b